[Event "51st Rilton Cup 2023-24"]
[Site "Stockholm"]
[Date "2024.01.04"]
[Round "8.12"]
[White "Oratovsky, Michael"]
[Black "Rakesh Kumar Jena"]
[Result "1/2-1/2"]
[ECO "C54"]
[WhiteElo "2421"]
[BlackElo "2335"]
[Annotator "RC"]
[PlyCount "106"]
[EventDate "2023.12.27"]
[EventType "swiss"]
[EventCountry "SWE"]
[SourceTitle "playchess.com"]
[Source "ChessBase"]
[SourceQuality "1"]
[TimeControl "40/5400+30:1800+30"]

1. e4 {[%emt 0:06:04]} e5 {[%emt 0:00:07]} 2. Nf3 {[%emt 0:00:13]} Nc6 {[%emt 0:00:07]} 3. Bc4 {[%emt 0:00:06]} Bc5 {[%emt 0:00:22]} 4. c3 {[%emt 0:00:06]} Nf6 {[%emt 0:00:09]} 5. d3 {[%emt 0:00:06]} d6 {[%emt 0:01:38]} 6. Nbd2 {[%emt 0:01:21]} a5 {[%emt 0:01:03]} 7. Nf1 {[%emt 0:08:42]} O-O {[%emt 0:01:54]} 8. Ng3 {[%emt 0:00:07]} Bd7 {[%emt 0:02:51]} 9. O-O {[%emt 0:13:14]} h6 {[%emt 0:05:44]} 10. h3 {[%emt 0:09:48]} Qb8 {[%emt 0:08:27]} 11. Bb5 {[%emt 0:19:57]} Qa7 {[%emt 0:04:45]} 12. Nh4 {[%emt 0:05:37]} d5 {[%emt 0:38:00]} 13. Qf3 {[%emt 0:13:12]} dxe4 {[%emt 0:00:44]} 14. dxe4 {[%emt 0:00:08]} Qb6 {[%emt 0:00:48]} 15. a4 {[%emt 0:07:22]} Nh7 {[%emt 0:04:22]} 16. Nh5 {[%emt 0:06:50]} Ng5 {[%emt 0:04:47]} 17. Bxg5 {[%emt 0:03:26]} hxg5 {[%emt 0:00:02]} 18. Nf5 {[%emt 0:00:24]} Bxf5 {[%emt 0:01:04]} 19. Qxf5 {[%emt 0:01:36]} g6 {[%emt 0:02:46]} 20. Nf6+ {[%emt 0:01:23]} Kg7 {[%emt 0:00:16]} 21. Qf3 {[%emt 0:00:08]} Nb8 {[%emt 0:05:08]} 22. Ng4 {[%emt 0:00:43]} Qe6 {[%emt 0:01:17]} 23. Rad1 {[%emt 0:00:43]} c6 {[%emt 0:00:31]} 24. Be2 {[%emt 0:00:39]} f6 {[%emt 0:01:18]} 25. Qd3 {[%emt 0:00:26]} Bb6 {[%emt 0:02:07]} 26. Qc4 {[%emt 0:00:32]} Qe7 {[%emt 0:00:37]} 27. Qb3 {[%emt 0:00:25]} Bc5 {[%emt 0:00:12]} 28. Rd2 {[%emt 0:00:12]} b6 {[%emt 0:01:06]} 29. Rfd1 {[%emt 0:00:51]} Ra7 {[%emt 0:00:02]} 30. Bc4 {[%emt 0:00:25]} Rd7 {[%emt 0:00:35]} 31. Rxd7 {[%emt 0:00:16]} Nxd7 {[%emt 0:00:06]} 32. Be6 {[%emt 0:00:03]} Nb8 {[%emt 0:00:51]} 33. Rd3 {[%emt 0:00:29]} Re8 {[%emt 0:02:00]} 34. Bc4 {[%emt 0:00:10]} Rd8 {[%emt 0:00:33]} 35. Qd1 {[%emt 0:01:31]} Rxd3 {[%emt 0:00:36]} 36. Qxd3 {[%emt 0:00:08]} Qd6 {[%emt 0:00:27]} 37. Qc2 {[%emt 0:00:15]} Nd7 {[%emt 0:03:36]} 38. Ba2 {[%emt 0:00:01]} Qf8 {[%emt 0:00:18]} 39. Qb3 {[%emt 0:01:48]} f5 {[%emt 0:01:38]} 40. exf5 {[%emt 0:00:00]} gxf5 {[%emt 0:00:00]} 41. Ne3 {[%emt 0:12:03]} Bxe3 {[%emt 0:03:58]} 42. fxe3 {[%emt 0:00:02]} Qe8 {[%emt 0:01:37]} 43. Qc2 {[%emt 0:15:29]} e4 {[%emt 0:02:05]} 44. Qd1 {[%emt 0:00:34]} Nf6 {[%emt 0:03:16]} 45. Qd6 {[%emt 0:02:02]} Qd7 {[%emt 0:01:16]} 46. Qe5 {[%emt 0:00:44]} b5 {[%emt 0:11:45]} 47. axb5 {[%emt 0:01:35]} cxb5 {[%emt 0:00:01]} 48. Be6 {[%emt 0:00:19]} Qd2 {[%emt 0:00:21]} 49. Qc5 {[%emt 0:01:42]} Qe1+ {[%emt 0:02:06]} 50. Kh2 {[%emt 0:00:02]} Ng4+ {[%emt 0:00:20]} 51. hxg4 {[%emt 0:00:06]} Qh4+ {[%emt 0:00:02]} 52. Kg1 {[%emt 0:00:06]} Qe1+ {[%emt 0:00:04]} 53. Kh2 {[%emt 0:00:04]} Qh4+ {[%emt 0:00:03]} 1/2-1/2

[Event "51st Rilton Cup 2023-24"]
[Site "Stockholm"]
[Date "2024.01.04"]
[Round "8.13"]
[White "Sidhant, Mohapatra"]
[Black "Srihari L"]
[Result "1/2-1/2"]
[ECO "B67"]
[WhiteElo "2408"]
[BlackElo "2272"]
[Annotator "RC"]
[PlyCount "60"]
[EventDate "2023.12.27"]
[EventType "swiss"]
[EventCountry "SWE"]
[SourceTitle "playchess.com"]
[Source "ChessBase"]
[SourceQuality "1"]
[TimeControl "40/5400+30:1800+30"]

1. e4 {[%emt 0:06:09]} c5 {[%emt 0:00:06]} 2. Nf3 {[%emt 0:00:08]} d6 {[%emt 0:00:05]} 3. d4 {[%emt 0:00:42]} cxd4 {[%emt 0:00:05]} 4. Nxd4 {[%emt 0:00:04]} Nf6 {[%emt 0:00:05]} 5. Nc3 {[%emt 0:00:04]} Nc6 {[%emt 0:00:09]} 6. Bg5 {[%emt 0:00:26]} e6 {[%emt 0:00:09]} 7. Qd2 {[%emt 0:01:05]} a6 {[%emt 0:00:13]} 8. O-O-O {[%emt 0:00:08]} Bd7 {[%emt 0:00:08]} 9. Kb1 {[%emt 0:00:05]} Be7 {[%emt 0:00:36]} 10. Nxc6 {[%emt 0:02:52]} Bxc6 {[%emt 0:01:29]} 11. f3 {[%emt 0:00:06]} b5 {[%emt 0:00:46]} 12. h4 {[%emt 0:00:46]} h6 {[%emt 0:00:28]} 13. Be3 {[%emt 0:01:40]} h5 {[%emt 0:00:08]} 14. Ne2 {[%emt 0:03:52]} Qb8 {[%emt 0:05:23]} 15. Nd4 {[%emt 0:04:25]} Bd7 {[%emt 0:00:21]} 16. Bg5 {[%emt 0:02:01]} a5 {[%emt 0:05:30]} 17. Bd3 {[%emt 0:01:20]} b4 {[%emt 0:05:00]} 18. Rhe1 {[%emt 0:01:18]} a4 {[%emt 0:04:23]} 19. f4 {[%emt 0:04:11]} Ra5 {[%emt 0:10:35]} 20. Nf3 {[%emt 0:05:20]} e5 {[%emt 0:04:35]} 21. Bc4 {[%emt 0:04:37]} Bg4 {[%emt 0:15:07]} 22. f5 {[%emt 0:03:28]} Rc5 {[%emt 0:01:41]} 23. Bxf6 {[%emt 0:01:06]} Bxf6 {[%emt 0:04:54]} 24. b3 {[%emt 0:04:18]} Ke7 {[%emt 0:03:11]} 25. Re3 {[%emt 0:02:20]} Rhc8 {[%emt 0:07:24]} 26. Rd3 {[%emt 0:00:13]} R8c6 {[%emt 0:00:18]} 27. Rd5 {[%emt 0:00:43]} Qb6 {[%emt 0:00:40]} 28. Rxc5 {[%emt 0:00:51]} Rxc5 {[%emt 0:00:22]} 29. Qd3 {[%emt 0:00:50]} Qc7 {[%emt 0:00:52]} 30. Rh1 {[%emt 0:00:23]} Bxf3 {[%emt 0:02:45]} 1/2-1/2

[Event "51st Rilton Cup 2023-24"]
[Site "Stockholm"]
[Date "2024.01.04"]
[Round "8.14"]
[White "Falkevall, Axel"]
[Black "Dhulipalla Bala Chandra Prasad"]
[Result "1/2-1/2"]
[ECO "C92"]
[WhiteElo "2311"]
[BlackElo "2396"]
[Annotator "RC"]
[PlyCount "67"]
[EventDate "2023.12.27"]
[EventType "swiss"]
[EventCountry "SWE"]
[SourceTitle "playchess.com"]
[Source "ChessBase"]
[SourceQuality "1"]
[TimeControl "40/5400+30:1800+30"]

1. e4 {[%emt 0:00:07]} e5 {[%emt 0:07:15]} 2. Nf3 {[%emt 0:00:05]} Nc6 {[%emt 0:00:03]} 3. Bb5 {[%emt 0:00:09]} a6 {[%emt 0:00:12]} 4. Ba4 {[%emt 0:00:05]} Nf6 {[%emt 0:00:03]} 5. O-O {[%emt 0:00:10]} Be7 {[%emt 0:00:05]} 6. Re1 {[%emt 0:00:08]} b5 {[%emt 0:00:07]} 7. Bb3 {[%emt 0:00:04]} d6 {[%emt 0:00:03]} 8. c3 {[%emt 0:00:08]} O-O {[%emt 0:00:05]} 9. h3 {[%emt 0:00:05]} Be6 {[%emt 0:02:43]} 10. d4 {[%emt 0:02:40]} Bxb3 {[%emt 0:00:41]} 11. axb3 {[%emt 0:00:48]} exd4 {[%emt 0:00:18]} 12. cxd4 {[%emt 0:00:58]} Nb4 {[%emt 0:01:11]} 13. Nc3 {[%emt 0:08:08]} Re8 {[%emt 0:02:10]} 14. Bf4 {[%emt 0:04:30]} d5 {[%emt 0:17:51]} 15. e5 {[%emt 0:03:26]} Nd7 {[%emt 0:00:10]} 16. e6 {[%emt 0:04:44]} fxe6 {[%emt 0:00:12]} 17. Rxe6 {[%emt 0:00:53]} Nf8 {[%emt 0:00:22]} 18. Re3 {[%emt 0:01:27]} Ng6 {[%emt 0:04:30]} 19. Bg3 {[%emt 0:02:19]} Qd7 {[%emt 0:03:14]} 20. h4 {[%emt 0:13:10]} Qf5 {[%emt 0:15:42]} 21. Rc1 {[%emt 0:07:16]} Bd6 {[%emt 0:21:01]} 22. Bxd6 {[%emt 0:04:37]} cxd6 {[%emt 0:00:59]} 23. Qd2 {[%emt 0:03:21]} Nf4 {[%emt 0:00:36]} 24. Ne2 {[%emt 0:05:23]} Rxe3 {[%emt 0:07:19]} 25. Qxe3 {[%emt 0:04:00]} Nxe2+ {[%emt 0:01:27]} 26. Qxe2 {[%emt 0:00:04]} Nd3 {[%emt 0:07:19]} 27. Rc7 {[%emt 0:07:34]} Qe4 {[%emt 0:00:30]} 28. Qc2 {[%emt 0:02:51]} h6 {[%emt 0:03:32]} 29. Qc6 {[%emt 0:05:04]} Rf8 {[%emt 0:00:17]} 30. Qd7 {[%emt 0:01:46]} Qg6 {[%emt 0:00:42]} 31. h5 {[%emt 0:01:15]} Qf6 {[%emt 0:00:17]} 32. Rc6 {[%emt 0:04:24]} Ne1 {[%emt 0:00:13]} 33. Rc3 {[%emt 0:01:01]} Rd8 {[%emt 0:01:04]} 34. Qg4 {[%emt 0:05:16]} 1/2-1/2

[Event "51st Rilton Cup 2023-24"]
[Site "Stockholm"]
[Date "2024.01.04"]
[Round "8.15"]
[White "Aoshima, Mirai"]
[Black "Tulchynskyi, Feliks"]
[Result "1-0"]
[ECO "D38"]
[WhiteElo "2367"]
[BlackElo "2325"]
[Annotator "RC"]
[PlyCount "133"]
[EventDate "2023.12.27"]
[EventType "swiss"]
[EventCountry "SWE"]
[SourceTitle "playchess.com"]
[Source "ChessBase"]
[SourceQuality "1"]
[TimeControl "40/5400+30:1800+30"]

1. d4 {[%emt 0:01:24]} Nf6 {[%emt 0:00:58]} 2. c4 {[%emt 0:00:06]} e6 {[%emt 0:00:21]} 3. Nf3 {[%emt 0:00:09]} d5 {[%emt 0:00:34]} 4. Nc3 {[%emt 0:00:11]} Bb4 {[%emt 0:00:33]} 5. Qa4+ {[%emt 0:00:48]} Nc6 {[%emt 0:00:09]} 6. e3 {[%emt 0:00:13]} O-O {[%emt 0:00:29]} 7. Bd2 {[%emt 0:00:36]} dxc4 {[%emt 0:00:37]} 8. Bxc4 {[%emt 0:00:08]} Bd6 {[%emt 0:00:22]} 9. Qc2 {[%emt 0:01:38]} e5 {[%emt 0:00:19]} 10. dxe5 {[%emt 0:00:30]} Nxe5 {[%emt 0:00:09]} 11. Nxe5 {[%emt 0:00:06]} Bxe5 {[%emt 0:00:07]} 12. f4 {[%emt 0:02:07]} Bxc3 {[%emt 0:00:55]} 13. Bxc3 {[%emt 0:00:07]} Ng4 {[%emt 0:02:15]} 14. Qe2 {[%emt 0:01:00]} Qe7 {[%emt 0:29:37]} 15. e4 {[%emt 0:09:22]} Qc5 {[%emt 0:06:42]} 16. O-O-O {[%emt 0:06:50]} Ne3 {[%emt 0:20:15]} 17. Rd4 {[%emt 0:01:43]} Nxc4 {[%emt 0:01:22]} 18. Qxc4 {[%emt 0:01:20]} Qxc4 {[%emt 0:01:11]} 19. Rxc4 {[%emt 0:00:04]} Re8 {[%emt 0:03:31]} 20. Re1 {[%emt 0:18:08]} c6 {[%emt 0:02:24]} 21. f5 {[%emt 0:00:30]} b6 {[%emt 0:07:20]} 22. Rxc6 {[%emt 0:02:02]} Bb7 {[%emt 0:00:14]} 23. Rc4 {[%emt 0:00:18]} f6 {[%emt 0:02:38]} 24. e5 {[%emt 0:13:29]} fxe5 {[%emt 0:02:10]} 25. Rc7 {[%emt 0:00:19]} Ba6 {[%emt 0:01:20]} 26. Re3 {[%emt 0:05:41]} Rec8 {[%emt 0:03:02]} 27. Re7 {[%emt 0:01:00]} Bc4 {[%emt 0:04:18]} 28. Rg3 {[%emt 0:00:46]} Bf7 {[%emt 0:00:07]} 29. Rxe5 {[%emt 0:00:14]} Kf8 {[%emt 0:02:37]} 30. Kb1 {[%emt 0:09:24]} Rc4 {[%emt 0:01:30]} 31. b3 {[%emt 0:04:09]} Rf4 {[%emt 0:00:40]} 32. Rxg7 {[%emt 0:01:46]} Rf1+ {[%emt 0:01:28]} 33. Kb2 {[%emt 0:00:06]} Kxg7 {[%emt 0:01:22]} 34. Re1+ {[%emt 0:01:53]} Kg8 {[%emt 0:00:55]} 35. Rxf1 {[%emt 0:00:03]} Re8 {[%emt 0:00:14]} 36. Rf2 {[%emt 0:00:17]} Bh5 {[%emt 0:00:38]} 37. Ka3 {[%emt 0:14:01]} Re2 {[%emt 0:01:15]} 38. Rf4 {[%emt 0:00:30]} Rxg2 {[%emt 0:00:21]} 39. Rc4 {[%emt 0:00:11]} Rf2 {[%emt 0:04:23]} 40. Rc8+ {[%emt 0:05:14]} Kf7 {[%emt 0:00:06]} 41. Rc7+ {[%emt 0:30:05]} Ke8 {[%emt 0:30:52]} 42. f6 {[%emt 0:00:38]} Bg6 {[%emt 0:00:00]} 43. Rxa7 {[%emt 0:00:00]} Bb1 {[%emt 0:00:00]} 44. Bb2 {[%emt 0:00:00]} Rxh2 {[%emt 0:00:00]} 45. Rb7 {[%emt 0:00:00]} Rf2 {[%emt 0:00:00]} 46. Rxb6 {[%emt 0:00:00]} h5 {[%emt 0:00:00]} 47. Re6+ {[%emt 0:00:00]} Kf7 {[%emt 0:00:00]} 48. Re1 {[%emt 0:00:00]} Bd3 {[%emt 0:00:00]} 49. Re7+ {[%emt 0:00:00]} Kg6 {[%emt 0:00:00]} 50. Bd4 {[%emt 0:00:00]} Rf4 {[%emt 0:00:00]} 51. Be5 {[%emt 0:00:00]} Rf3 {[%emt 0:00:00]} 52. Rg7+ {[%emt 0:00:00]} Kf5 {[%emt 0:00:00]} 53. Rg3 {[%emt 0:00:00]} Rxg3 {[%emt 0:00:02]} 54. f7 {[%emt 0:00:00]} Kxe5 {[%emt 0:00:07]} 55. f8=Q {[%emt 0:00:00]} Rh3 {[%emt 0:02:31]} 56. Kb4 {[%emt 0:00:00]} Be4 {[%emt 0:01:30]} 57. Kc5 {[%emt 0:00:00]} Rc3+ {[%emt 0:00:19]} 58. Kb5 {[%emt 0:00:00]} Rd3 {[%emt 0:01:28]} 59. b4 {[%emt 0:00:00]} Ra3 {[%emt 0:01:45]} 60. Kc5 {[%emt 0:00:33]} Rc3+ {[%emt 0:00:32]} 61. Kb6 {[%emt 0:00:07]} Kd4 {[%emt 0:00:32]} 62. Qh8+ {[%emt 0:01:43]} Kc4 {[%emt 0:00:22]} 63. Qxh5 {[%emt 0:00:36]} Ra3 {[%emt 0:00:51]} 64. Qe2+ {[%emt 0:00:56]} Bd3 {[%emt 0:01:37]} 65. Qe3 {[%emt 0:00:21]} Kc3 {[%emt 0:00:30]} 66. Qc1+ {[%emt 0:00:14]} Kxb4 {[%emt 0:00:22]} 67. Qc5+ {[%emt 0:00:09]} 1-0

[Event "51st Rilton Cup 2023-24"]
[Site "Stockholm"]
[Date "2024.01.04"]
[Round "8.16"]
[White "Utsab Chatterjee"]
[Black "Moksh Amit Doshi"]
[Result "1-0"]
[ECO "B90"]
[WhiteElo "2289"]
[BlackElo "2366"]
[Annotator "RC"]
[PlyCount "85"]
[EventDate "2023.12.27"]
[EventType "swiss"]
[EventCountry "SWE"]
[SourceTitle "playchess.com"]
[Source "ChessBase"]
[SourceQuality "1"]
[TimeControl "40/5400+30:1800+30"]

1. e4 {[%emt 0:00:15]} c5 {[%emt 0:01:41]} 2. Nf3 {[%emt 0:00:20]} d6 {[%emt 0:00:08]} 3. d4 {[%emt 0:00:29]} cxd4 {[%emt 0:00:07]} 4. Nxd4 {[%emt 0:00:21]} Nf6 {[%emt 0:00:10]} 5. Nc3 {[%emt 0:00:10]} a6 {[%emt 0:00:06]} 6. h3 {[%emt 0:00:16]} e5 {[%emt 0:00:08]} 7. Nb3 {[%emt 0:00:30]} Be7 {[%emt 0:00:46]} 8. g4 {[%emt 0:00:17]} h6 {[%emt 0:00:07]} 9. Be3 {[%emt 0:00:15]} Nbd7 {[%emt 0:00:06]} 10. a4 {[%emt 0:00:35]} Nf8 {[%emt 0:02:27]} 11. Be2 {[%emt 0:13:23]} Be6 {[%emt 0:03:06]} 12. Nd5 {[%emt 0:01:32]} Bxd5 {[%emt 0:03:23]} 13. exd5 {[%emt 0:00:02]} N6d7 {[%emt 0:00:47]} 14. a5 {[%emt 0:02:33]} Bg5 {[%emt 0:02:04]} 15. Qd2 {[%emt 0:13:44]} Ng6 {[%emt 0:02:33]} 16. Qb4 {[%emt 0:01:44]} Qc7 {[%emt 0:04:25]} 17. c4 {[%emt 0:01:45]} O-O {[%emt 0:06:29]} 18. Nd2 {[%emt 0:03:26]} Nc5 {[%emt 0:05:29]} 19. Qc3 {[%emt 0:00:14]} Bxe3 {[%emt 0:05:06]} 20. fxe3 {[%emt 0:00:36]} Qe7 {[%emt 0:00:06]} 21. b4 {[%emt 0:05:18]} Qh4+ {[%emt 0:00:09]} 22. Kd1 {[%emt 0:00:06]} Nd7 {[%emt 0:00:10]} 23. Ne4 {[%emt 0:02:00]} Qe7 {[%emt 0:01:50]} 24. Kd2 {[%emt 0:04:43]} Nh4 {[%emt 0:01:36]} 25. Rhf1 {[%emt 0:04:06]} Rac8 {[%emt 0:02:09]} 26. Qb3 {[%emt 0:06:20]} g6 {[%emt 0:02:50]} 27. g5 {[%emt 0:09:52]} hxg5 {[%emt 0:03:13]} 28. Rg1 {[%emt 0:00:01]} f6 {[%emt 0:02:23]} 29. c5 {[%emt 0:00:43]} Nf5 {[%emt 0:04:38]} 30. c6 {[%emt 0:09:43]} Nb8 {[%emt 0:01:57]} 31. b5 {[%emt 0:00:10]} axb5 {[%emt 0:07:01]} 32. Bxb5 {[%emt 0:04:36]} Kg7 {[%emt 0:03:17]} 33. a6 {[%emt 0:00:38]} bxa6 {[%emt 0:03:02]} 34. Bxa6 {[%emt 0:00:01]} Nxa6 {[%emt 0:06:09]} 35. Rxa6 {[%emt 0:00:02]} Rb8 {[%emt 0:00:52]} 36. Qa3 {[%emt 0:05:47]} Rfc8 {[%emt 0:01:50]} 37. Ra7 {[%emt 0:03:03]} Rc7 {[%emt 0:00:06]} 38. Ra1 {[%emt 0:02:26]} Rbc8 {[%emt 0:04:31]} 39. Rxc7 {[%emt 0:00:41]} Qxc7 {[%emt 0:02:56]} 40. Qa7 {[%emt 0:00:40]} Kf7 {[%emt 0:06:45]} 41. Qxc7+ {[%emt 0:31:22]} Rxc7 {[%emt 0:30:16]} 42. Nc3 {[%emt 0:00:09]} Ke7 {[%emt 0:03:37]} 43. Ra8 {[%emt 0:00:42]} 1-0

[Event "51st Rilton Cup 2023-24"]
[Site "Stockholm"]
[Date "2024.01.04"]
[Round "8.17"]
[White "Ivanov, Mike"]
[Black "Anand, Batsukh"]
[Result "1-0"]
[ECO "A07"]
[WhiteElo "2356"]
[BlackElo "2263"]
[Annotator "RC"]
[PlyCount "75"]
[EventDate "2023.12.27"]
[EventType "swiss"]
[EventCountry "SWE"]
[SourceTitle "playchess.com"]
[Source "ChessBase"]
[SourceQuality "1"]
[TimeControl "40/5400+30:1800+30"]

1. Nf3 {[%emt 0:00:02]} d5 {[%emt 0:00:08]} 2. g3 {[%emt 0:00:10]} Bg4 {[%emt 0:00:07]} 3. Bg2 {[%emt 0:00:15]} Nd7 {[%emt 0:00:06]} 4. h3 {[%emt 0:01:02]} Bxf3 {[%emt 0:00:46]} 5. exf3 {[%emt 0:02:07]} c6 {[%emt 0:01:20]} 6. f4 {[%emt 0:00:39]} e6 {[%emt 0:01:31]} 7. d3 {[%emt 0:01:35]} Ngf6 {[%emt 0:03:37]} 8. Nd2 {[%emt 0:00:16]} Bd6 {[%emt 0:01:29]} 9. Nf3 {[%emt 0:00:30]} Qc7 {[%emt 0:01:02]} 10. a4 {[%emt 0:07:30]} O-O-O {[%emt 0:12:27]} 11. Be3 {[%emt 0:08:12]} h6 {[%emt 0:05:58]} 12. a5 {[%emt 0:04:23]} a6 {[%emt 0:01:23]} 13. O-O {[%emt 0:10:55]} Rdg8 {[%emt 0:03:16]} 14. c4 {[%emt 0:04:56]} g5 {[%emt 0:07:01]} 15. fxg5 {[%emt 0:01:01]} hxg5 {[%emt 0:00:06]} 16. Nxg5 {[%emt 0:01:57]} d4 {[%emt 0:09:22]} 17. Bd2 {[%emt 0:02:13]} Ne5 {[%emt 0:02:15]} 18. Qe2 {[%emt 0:03:00]} Rh5 {[%emt 0:13:35]} 19. f4 {[%emt 0:06:55]} Ng6 {[%emt 0:02:29]} 20. b4 {[%emt 0:00:19]} Rgh8 {[%emt 0:07:23]} 21. b5 {[%emt 0:12:30]} Rxg5 {[%emt 0:01:00]} 22. fxg5 {[%emt 0:00:30]} Nh5 {[%emt 0:00:06]} 23. bxa6 {[%emt 0:07:18]} bxa6 {[%emt 0:05:04]} 24. Be1 {[%emt 0:08:11]} Bxg3 {[%emt 0:04:07]} 25. Bxg3 {[%emt 0:01:45]} Nxg3 {[%emt 0:00:14]} 26. Qf3 {[%emt 0:00:19]} Nf4 {[%emt 0:03:26]} 27. Rf2 {[%emt 0:01:57]} Rh4 {[%emt 0:12:45]} 28. Rb1 {[%emt 0:02:32]} Nxg2 {[%emt 0:01:52]} 29. g6 {[%emt 0:05:44]} Nf4 {[%emt 0:00:18]} 30. g7 {[%emt 0:01:03]} Nge2+ {[%emt 0:00:40]} 31. Kf1 {[%emt 0:00:42]} Rxh3 {[%emt 0:00:30]} 32. g8=Q+ {[%emt 0:00:20]} Kd7 {[%emt 0:00:02]} 33. Qxf7+ {[%emt 0:00:27]} Kd6 {[%emt 0:00:11]} 34. c5+ {[%emt 0:01:48]} Kxc5 {[%emt 0:00:29]} 35. Qxc7 {[%emt 0:00:24]} Ng3+ {[%emt 0:01:12]} 36. Qxg3 {[%emt 0:00:41]} Rxg3 {[%emt 0:00:06]} 37. Qe5+ {[%emt 0:00:27]} Nd5 {[%emt 0:00:06]} 38. Rc2# {[%emt 0:00:04]} 1-0

[Event "51st Rilton Cup 2023-24"]
[Site "Stockholm"]
[Date "2024.01.04"]
[Round "8.18"]
[White "Hillarp Persson, Tiger"]
[Black "Starosta, Martyna"]
[Result "1-0"]
[ECO "A34"]
[WhiteElo "2493"]
[BlackElo "2067"]
[Annotator "TA"]
[PlyCount "35"]
[EventDate "2023.12.27"]
[EventType "swiss"]
[EventCountry "SWE"]
[SourceTitle "playchess.com"]
[Source "ChessBase"]
[SourceQuality "1"]
[TimeControl "40/5400+30:1800+30"]

{[%evp 12,34,8,0,7,0,0,0,14,0,22,20,52,60,110,102,86,28,1058,1030,1094,1091,29998,29999,29999]} 1. c4 {[%emt 0:00:03]} Nf6 {[%emt 0:00:05]} 2. Nc3 {[%emt 0:01:35]} c5 {[%emt 0:00:21]} 3. g3 {[%emt 0:03:47]} d5 {[%emt 0:00:14]} 4. cxd5 {[%emt 0:00:08]} Nxd5 {[%emt 0:00:06]} 5. Bg2 {[%emt 0:00:07]} Nc7 {[%emt 0:00:07]} 6. d3 {[%emt 0:01:10]} e5 {[%emt 0:00:10]} 7. Nh3 {[%emt 0:00:26][%cal Bg1h3,Bh3g5,Bg5f7,Bf7h6][%mdl 32]} Be7 {[%emt 0:01:50] A34: Symmetrical English: 2 Nc3, lines with ...d5.} 8. f4 {[%emt 0:00:40]} Nc6 {[%emt 0:10:08]} 9. O-O {[%emt 0:12:51]} O-O {[%emt 0:00:28] The position is equal.} 10. f5 {[%emt 0:01:07] [#]} Re8 $146 {[%emt 0:25:06]} ({Predecessor:} 10... Nd4 11. g4 h5 12. e4 hxg4 13. Qxg4 Qd6 14. Kh1 Bd7 15. Rg1 Bc6 16. Bf3 Ne8 {1-0 Gaprindashvili,P (2633)-Gonzalez,B (2480) CADAP 40 years Gr-A email 2008}) 11. g4 {[%emt 0:16:46]} Bf8 {[%emt 0:07:48]} 12. Ng5 {[%emt 0:20:42][%cal Og5f7] [#] Threatens to win with Nxf7!} Qd4+ {[%emt 0:08:41]} (12... Nd4 $14) 13. e3 $16 {[%emt 0:01:49]} Qd7 {[%emt 0:00:36]} 14. Be4 {[%emt 0:01:39] White is much more active. The black rooks are badly placed.} (14. Nce4 $16) 14... f6 $2 {[%emt 0:09:06][%mdl 8192] This costs Black the game.} (14... Rb8 $11) 15. Qb3+ $18 {[%emt 0:00:34]} Kh8 {[%emt 0:05:15]} 16. Nf7+ {[%emt 0:00:49]} Kg8 {[%emt 0:00:06]} 17. Nh6+ {[%emt 0:00:08][%mdl 64] [#] Discovered Attack (Double check)} Kh8 {[%emt 0:00:04]} 18. Qg8# {[%emt 0:00:07] Weighted Error Value: White=0.11 (very precise) /Black=0.69} 1-0